[Event "Late-Titled-Tuesday-Blitz-March-19-2024"]
[Site "Chess.com"]
[Date "2024.03.19"]
[Round "9"]
[White "Mikhail_Bryakin"]
[Black "KaydenTroffChess"]
[Result "1/2-1/2"]
[WhiteElo "2730"]
[BlackElo "2850"]
[TimeControl "180+1"]
[EndTime "15:43:01 PDT"]
[Termination "Game drawn by repetition"]

1. Nf3 {[%clk 0:02:55.7]} 1... Nf6 {[%clk 0:03:00.1]} 2. e3 {[%clk 0:02:55.1]}
2... g6 {[%clk 0:02:59.7]} 3. b3 {[%clk 0:02:53.8]} 3... Bg7 {[%clk 0:02:59.7]}
4. Bb2 {[%clk 0:02:54.4]} 4... O-O {[%clk 0:02:59.4]} 5. d4 {[%clk 0:02:54.5]}
5... b6 {[%clk 0:02:50.6]} 6. Be2 {[%clk 0:02:48.4]} 6... Bb7 {[%clk 0:02:50.5]}
7. O-O {[%clk 0:02:49.1]} 7... d6 {[%clk 0:02:50.4]} 8. c4 {[%clk 0:02:48.2]}
8... Nbd7 {[%clk 0:02:49.3]} 9. d5 {[%clk 0:02:47.4]} 9... c6 {[%clk 0:02:47.2]}
10. dxc6 {[%clk 0:02:45.3]} 10... Bxc6 {[%clk 0:02:47.1]} 11. Nc3 {[%clk
0:02:45.6]} 11... Qc8 {[%clk 0:02:34]} 12. Nd4 {[%clk 0:02:38.1]} 12... Bb7
{[%clk 0:02:32.5]} 13. Bf3 {[%clk 0:02:38.6]} 13... Nc5 {[%clk 0:02:23.1]} 14.
Bxb7 {[%clk 0:02:33.2]} 14... Qxb7 {[%clk 0:02:23]} 15. Qe2 {[%clk 0:02:33.4]}
15... a6 {[%clk 0:02:14.3]} 16. Rfd1 {[%clk 0:02:26.7]} 16... Rfc8 {[%clk
0:01:48.3]} 17. Rac1 {[%clk 0:02:23.5]} 17... Rc7 {[%clk 0:01:35.9]} 18. h3
{[%clk 0:02:22.1]} 18... Rac8 {[%clk 0:01:36]} 19. Rc2 {[%clk 0:02:03.4]} 19...
Ncd7 {[%clk 0:01:30.9]} 20. Rdc1 {[%clk 0:02:01.7]} 20... Rc5 {[%clk 0:01:28.6]}
21. Qf3 {[%clk 0:01:59.5]} 21... Qxf3 {[%clk 0:01:22.8]} 22. Nxf3 {[%clk
0:02:00.4]} 22... d5 {[%clk 0:01:11.3]} 23. Na4 {[%clk 0:01:35.7]} 23... R5c7
{[%clk 0:01:07.4]} 24. Ne1 {[%clk 0:01:28]} 24... b5 {[%clk 0:01:01.2]} 25. cxb5
{[%clk 0:01:24.4]} 25... Rxc2 {[%clk 0:00:58.9]} 26. Rxc2 {[%clk 0:01:25.1]}
26... Rxc2 {[%clk 0:00:59.1]} 27. Nxc2 {[%clk 0:01:25.8]} 27... axb5 {[%clk
0:00:59.7]} 28. Nc3 {[%clk 0:01:26.4]} 28... Ne4 {[%clk 0:00:56]} 29. Nd1 {[%clk
0:01:21.8]} 29... Bxb2 {[%clk 0:00:47.2]} 30. Nxb2 {[%clk 0:01:22.7]} 30... Nc3
{[%clk 0:00:44.8]} 31. a4 {[%clk 0:01:20.2]} 31... bxa4 {[%clk 0:00:40.3]} 32.
bxa4 {[%clk 0:01:20.5]} 32... e5 {[%clk 0:00:39]} 33. a5 {[%clk 0:01:20.6]}
33... Kf8 {[%clk 0:00:33.2]} 34. a6 {[%clk 0:01:10.2]} 34... Nb6 {[%clk
0:00:32.8]} 35. Nb4 {[%clk 0:01:01.8]} 35... Ke7 {[%clk 0:00:31.1]} 36. f4
{[%clk 0:01:00.2]} 36... exf4 {[%clk 0:00:23.9]} 37. exf4 {[%clk 0:01:00.1]}
37... Ne2+ {[%clk 0:00:17.8]} 38. Kf2 {[%clk 0:01:00.6]} 38... Nxf4 {[%clk
0:00:18.5]} 39. Kf3 {[%clk 0:01:01.3]} 39... Ne6 {[%clk 0:00:17.9]} 40. N2d3
{[%clk 0:00:58.9]} 40... Kd6 {[%clk 0:00:18.1]} 41. g4 {[%clk 0:00:59.5]} 41...
Nc5 {[%clk 0:00:18]} 42. Kf4 {[%clk 0:00:55.8]} 42... f6 {[%clk 0:00:17.8]} 43.
h4 {[%clk 0:00:53.8]} 43... Ne6+ {[%clk 0:00:15.9]} 44. Ke3 {[%clk 0:00:53.3]}
44... Nc4+ {[%clk 0:00:14.9]} 45. Kf3 {[%clk 0:00:46.9]} 45... Nb6 {[%clk
0:00:13.1]} 46. Ke3 {[%clk 0:00:46.9]} 46... Nc7 {[%clk 0:00:13.3]} 47. Kf4
{[%clk 0:00:42]} 47... Ne6+ {[%clk 0:00:13.2]} 48. Ke3 {[%clk 0:00:42.2]}
1/2-1/2

[Event "Late-Titled-Tuesday-Blitz-March-19-2024"]
[Site "Chess.com"]
[Date "2024.03.19"]
[Round "9"]
[White "Defenstrator"]
[Black "SocoLoco"]
[Result "1-0"]
[WhiteElo "2441"]
[BlackElo "2146"]
[TimeControl "180+1"]
[EndTime "15:43:02 PDT"]
[Termination "Defenstrator won on time"]

1. e4 {[%clk 0:03:00.6]} 1... c5 {[%clk 0:02:59.4]} 2. g3 {[%clk 0:03:00.6]}
2... d5 {[%clk 0:02:57.8]} 3. exd5 {[%clk 0:03:01]} 3... Qxd5 {[%clk 0:02:57.1]}
4. Qf3 {[%clk 0:03:01.9]} 4... Qxf3 {[%clk 0:02:56.1]} 5. Nxf3 {[%clk
0:03:02.8]} 5... Nc6 {[%clk 0:02:55.5]} 6. Bb5 {[%clk 0:03:03.2]} 6... Bd7
{[%clk 0:02:55.4]} 7. O-O {[%clk 0:03:01.3]} 7... f6 {[%clk 0:02:52.5]} 8. d4
{[%clk 0:03:00.1]} 8... cxd4 {[%clk 0:02:49.6]} 9. Bxc6 {[%clk 0:02:59.7]} 9...
Bxc6 {[%clk 0:02:49.5]} 10. Nxd4 {[%clk 0:03:00.6]} 10... Bd7 {[%clk 0:02:41.9]}
11. Nc3 {[%clk 0:03:01]} 11... e5 {[%clk 0:02:33.9]} 12. Ndb5 {[%clk 0:02:54.1]}
12... Kf7 {[%clk 0:01:58.8]} 13. Rd1 {[%clk 0:02:52.2]} 13... Bc6 {[%clk
0:01:54.3]} 14. Be3 {[%clk 0:02:50.4]} 14... a6 {[%clk 0:01:51.1]} 15. Nd6+
{[%clk 0:02:49.3]} 15... Ke6 {[%clk 0:01:43.5]} 16. Nde4 {[%clk 0:02:42.4]}
16... h6 {[%clk 0:01:39.1]} 17. Nc5+ {[%clk 0:02:40.5]} 17... Kf7 {[%clk
0:01:23.9]} 18. Nd5 {[%clk 0:02:15]} 18... Ne7 {[%clk 0:01:13.3]} 19. Nb6 {[%clk
0:02:11.4]} 19... Re8 {[%clk 0:01:04.8]} 20. Nc4 {[%clk 0:02:11.7]} 20... Nd5
{[%clk 0:00:59.5]} 21. Na5 {[%clk 0:02:07.9]} 21... Nxe3 {[%clk 0:00:58]} 22.
fxe3 {[%clk 0:02:01]} 22... Bxc5 {[%clk 0:00:56.6]} 23. Kf2 {[%clk 0:02:01.9]}
23... Rd8 {[%clk 0:00:52.5]} 24. Rd3 {[%clk 0:02:02.1]} 24... Bb5 {[%clk
0:00:48.5]} 25. Rc3 {[%clk 0:01:59.9]} 25... Bb6 {[%clk 0:00:36.7]} 26. Nxb7
{[%clk 0:01:57.6]} 26... Rd2+ {[%clk 0:00:32.1]} 27. Kf3 {[%clk 0:01:55.4]}
27... Rxh2 {[%clk 0:00:27.4]} 28. Nd6+ {[%clk 0:01:46.7]} 28... Kg6 {[%clk
0:00:27.2]} 29. a4 {[%clk 0:01:44]} 29... Bd7 {[%clk 0:00:24.4]} 30. Rd1 {[%clk
0:01:43.7]} 30... Bf5 {[%clk 0:00:20.6]} 31. Rc6 {[%clk 0:01:35.2]} 31... Rxc2
{[%clk 0:00:15.2]} 32. Rxb6 {[%clk 0:01:33]} 32... Rd8 {[%clk 0:00:10.1]} 33.
Rf1 {[%clk 0:01:23]} 33... h5 {[%clk 0:00:10.1]} 34. Nxf5 {[%clk 0:01:23.3]}
34... Kxf5 {[%clk 0:00:09.3]} 35. e4+ {[%clk 0:01:20.4]} 35... Kg6 {[%clk
0:00:09.5]} 36. Re1 {[%clk 0:01:19.2]} 36... Rd3+ {[%clk 0:00:08.7]} 37. Re3
{[%clk 0:01:19.8]} 37... Rdd2 {[%clk 0:00:08.6]} 38. Rc3 {[%clk 0:01:16]} 38...
Rf2+ {[%clk 0:00:07.6]} 39. Ke3 {[%clk 0:01:16.7]} 39... Rfe2+ {[%clk
0:00:07.6]} 40. Kd3 {[%clk 0:01:17.4]} 40... Red2+ {[%clk 0:00:07.4]} 41. Kc4
{[%clk 0:01:18]} 41... Rxb2 {[%clk 0:00:06.4]} 42. Rxa6 {[%clk 0:01:18.1]} 42...
Ra2 {[%clk 0:00:05.5]} 43. a5 {[%clk 0:01:16.9]} 43... Rd4+ {[%clk 0:00:05.5]}
44. Kc5 {[%clk 0:01:17.6]} 44... Raa4 {[%clk 0:00:04.7]} 45. Ra8 {[%clk
0:01:15.5]} 45... Rxe4 {[%clk 0:00:03.9]} 46. a6 {[%clk 0:01:15.5]} 46... Ra1
{[%clk 0:00:02.8]} 47. a7 {[%clk 0:01:15.8]} 47... Rea4 {[%clk 0:00:02]} 48. Kb6
{[%clk 0:01:16.6]} 48... Ra6+ {[%clk 0:00:01.9]} 49. Kb7 {[%clk 0:01:16.8]}
49... e4 {[%clk 0:00:01.5]} 50. Rb3 {[%clk 0:01:16.3]} 50... f5 {[%clk
0:00:01.3]} 51. Rb6+ {[%clk 0:01:13.4]} 51... Rxb6+ {[%clk 0:00:01.3]} 52. Kxb6
{[%clk 0:01:14.3]} 1-0

[Event "Late-Titled-Tuesday-Blitz-March-19-2024"]
[Site "Chess.com"]
[Date "2024.03.19"]
[Round "9"]
[White "Matrix3x3a"]
[Black "MathiasWomacka"]
[Result "1-0"]
[WhiteElo "2615"]
[BlackElo "2493"]
[TimeControl "180+1"]
[EndTime "15:43:05 PDT"]
[Termination "Matrix3x3a won on time"]

1. d4 {[%clk 0:03:00.9]} 1... Nf6 {[%clk 0:02:59]} 2. c4 {[%clk 0:03:00.3]} 2...
e6 {[%clk 0:02:58.1]} 3. Nf3 {[%clk 0:02:57.3]} 3... Bb4+ {[%clk 0:02:58.1]} 4.
Nbd2 {[%clk 0:02:55.6]} 4... O-O {[%clk 0:02:56.7]} 5. a3 {[%clk 0:02:53.1]}
5... Be7 {[%clk 0:02:56.9]} 6. e4 {[%clk 0:02:52.5]} 6... d5 {[%clk 0:02:57.5]}
7. Bd3 {[%clk 0:02:51.8]} 7... c5 {[%clk 0:02:51.8]} 8. e5 {[%clk 0:02:45.8]}
8... Nfd7 {[%clk 0:02:51]} 9. h4 {[%clk 0:02:45.3]} 9... g6 {[%clk 0:02:49.7]}
10. h5 {[%clk 0:02:42.9]} 10... cxd4 {[%clk 0:02:47]} 11. cxd5 {[%clk
0:02:42.9]} 11... exd5 {[%clk 0:02:46.1]} 12. hxg6 {[%clk 0:02:38.5]} 12... fxg6
{[%clk 0:02:44.3]} 13. Qc2 {[%clk 0:02:35.6]} 13... Qe8 {[%clk 0:02:36]} 14. Nb3
{[%clk 0:02:34.5]} 14... Nc6 {[%clk 0:02:30.4]} 15. e6 {[%clk 0:02:28.1]} 15...
Bf6 {[%clk 0:02:19.9]} 16. Kf1 {[%clk 0:02:22.7]} 16... Nde5 {[%clk 0:02:15.7]}
17. Bh6 {[%clk 0:02:21.4]} 17... Nxd3 {[%clk 0:01:59.8]} 18. Qxd3 {[%clk
0:02:19.7]} 18... Bxe6 {[%clk 0:01:59.3]} 19. Bxf8 {[%clk 0:02:15.4]} 19... Qxf8
{[%clk 0:02:00.2]} 20. Nbxd4 {[%clk 0:02:13.7]} 20... Bg4 {[%clk 0:01:51.1]} 21.
Rc1 {[%clk 0:02:07.5]} 21... Nxd4 {[%clk 0:01:22]} 22. Nxd4 {[%clk 0:02:08.4]}
22... Rc8 {[%clk 0:01:14.6]} 23. Rc3 {[%clk 0:02:07.6]} 23... Rxc3 {[%clk
0:01:13.2]} 24. Qxc3 {[%clk 0:01:57.4]} 24... Qe7 {[%clk 0:00:56.7]} 25. f3
{[%clk 0:01:54.7]} 25... Bd7 {[%clk 0:00:47]} 26. Kf2 {[%clk 0:01:53.6]} 26...
Qe5 {[%clk 0:00:44.4]} 27. Ne2 {[%clk 0:01:47.8]} 27... d4 {[%clk 0:00:38.6]}
28. Qd2 {[%clk 0:01:40.8]} 28... Bb5 {[%clk 0:00:27.9]} 29. g3 {[%clk
0:01:22.4]} 29... d3 {[%clk 0:00:19.6]} 30. Nc3 {[%clk 0:01:21.2]} 30... Qd4+
{[%clk 0:00:17.3]} 31. Qe3 {[%clk 0:01:01.6]} 31... Bc6 {[%clk 0:00:17.8]} 32.
Rd1 {[%clk 0:00:47.7]} 32... Qxe3+ {[%clk 0:00:10.3]} 33. Kxe3 {[%clk
0:00:47.3]} 33... h5 {[%clk 0:00:07]} 34. Rxd3 {[%clk 0:00:43.7]} 34... Kg7
{[%clk 0:00:07.2]} 35. f4 {[%clk 0:00:43.5]} 35... h4 {[%clk 0:00:04.1]} 36.
gxh4 {[%clk 0:00:43]} 36... Bxh4 {[%clk 0:00:05]} 37. Ne4 {[%clk 0:00:38.9]}
37... Be7 {[%clk 0:00:01.9]} 38. b4 {[%clk 0:00:37.3]} 38... Kf7 {[%clk
0:00:01.1]} 39. Nd6+ {[%clk 0:00:33.9]} 1-0

[Event "Late-Titled-Tuesday-Blitz-March-19-2024"]
[Site "Chess.com"]
[Date "2024.03.19"]
[Round "9"]
[White "rikchessmx"]
[Black "esteban062000"]
[Result "1-0"]
[WhiteElo "2288"]
[BlackElo "2161"]
[TimeControl "180+1"]
[EndTime "15:43:05 PDT"]
[Termination "rikchessmx won by resignation"]

1. e4 {[%clk 0:02:21.3]} 1... c5 {[%clk 0:02:59.3]} 2. Nf3 {[%clk 0:02:20.6]}
2... Nc6 {[%clk 0:02:59.6]} 3. d4 {[%clk 0:02:21.5]} 3... cxd4 {[%clk
0:03:00.2]} 4. Nxd4 {[%clk 0:02:20.8]} 4... Nf6 {[%clk 0:03:00.9]} 5. Nc3 {[%clk
0:02:19.7]} 5... e5 {[%clk 0:03:01.6]} 6. Ndb5 {[%clk 0:02:20]} 6... d6 {[%clk
0:03:02.2]} 7. a4 {[%clk 0:02:20]} 7... a6 {[%clk 0:03:02.7]} 8. Na3 {[%clk
0:02:20.6]} 8... Be7 {[%clk 0:03:02.9]} 9. Be2 {[%clk 0:02:21.1]} 9... Nd4
{[%clk 0:03:01]} 10. Be3 {[%clk 0:02:14.9]} 10... Nxe2 {[%clk 0:02:59.6]} 11.
Qxe2 {[%clk 0:02:14.7]} 11... Be6 {[%clk 0:02:54.8]} 12. Nc4 {[%clk 0:02:13.7]}
12... Bxc4 {[%clk 0:02:38.7]} 13. Qxc4 {[%clk 0:02:12.9]} 13... Rc8 {[%clk
0:02:37.4]} 14. Qb3 {[%clk 0:02:12.8]} 14... O-O {[%clk 0:02:27.8]} 15. O-O
{[%clk 0:02:09]} 15... Rxc3 {[%clk 0:02:23.4]} 16. bxc3 {[%clk 0:02:04.4]} 16...
Nxe4 {[%clk 0:02:20.6]} 17. Qxb7 {[%clk 0:02:03.9]} 17... Nxc3 {[%clk
0:02:13.6]} 18. Qxa6 {[%clk 0:02:02.5]} 18... d5 {[%clk 0:02:13.1]} 19. Bb6
{[%clk 0:01:52.4]} 19... Qd6 {[%clk 0:02:03.8]} 20. a5 {[%clk 0:01:51.7]} 20...
d4 {[%clk 0:02:01.8]} 21. Qd3 {[%clk 0:01:41.7]} 21... Qh6 {[%clk 0:01:46.6]}
22. f4 {[%clk 0:01:35.3]} 22... e4 {[%clk 0:01:43.6]} 23. Qc4 {[%clk 0:01:22.5]}
23... Bf6 {[%clk 0:01:23.3]} 24. Kh1 {[%clk 0:01:04.1]} 24... e3 {[%clk
0:01:08.2]} 25. Bxd4 {[%clk 0:00:50.5]} 25... e2 {[%clk 0:00:58.5]} 26. Qxc3
{[%clk 0:00:46.6]} 26... exf1=Q+ {[%clk 0:00:55.3]} 27. Rxf1 {[%clk 0:00:45.5]}
27... Bxd4 {[%clk 0:00:53.2]} 28. Qxd4 {[%clk 0:00:42.5]} 28... Qa6 {[%clk
0:00:52.8]} 29. Ra1 {[%clk 0:00:41]} 29... h6 {[%clk 0:00:44]} 30. Qb6 {[%clk
0:00:38.2]} 30... Qe2 {[%clk 0:00:37.5]} 31. a6 {[%clk 0:00:34]} 31... Re8
{[%clk 0:00:36.4]} 32. h3 {[%clk 0:00:29.6]} 32... Qe4 {[%clk 0:00:19.1]} 33.
Qb7 {[%clk 0:00:22.8]} 33... Qxc2 {[%clk 0:00:04.3]} 34. a7 {[%clk 0:00:19.1]}
1-0

[Event "Late-Titled-Tuesday-Blitz-March-19-2024"]
[Site "Chess.com"]
[Date "2024.03.19"]
[Round "9"]
[White "ilushka"]
[Black "Kumi29"]
[Result "0-1"]
[WhiteElo "2394"]
[BlackElo "2573"]
[TimeControl "180+1"]
[EndTime "15:43:11 PDT"]
[Termination "Kumi29 won on time"]

1. Nf3 {[%clk 0:03:00.9]} 1... Nf6 {[%clk 0:02:58.9]} 2. g3 {[%clk 0:03:00.6]}
2... b5 {[%clk 0:02:59.1]} 3. Bg2 {[%clk 0:03:00.1]} 3... d5 {[%clk 0:02:58.3]}
4. a4 {[%clk 0:02:57.8]} 4... b4 {[%clk 0:02:58.6]} 5. c4 {[%clk 0:02:57.6]}
5... bxc3 {[%clk 0:02:58.7]} 6. bxc3 {[%clk 0:02:57.3]} 6... e6 {[%clk
0:02:58.3]} 7. Ba3 {[%clk 0:02:54.2]} 7... Bxa3 {[%clk 0:02:56.8]} 8. Nxa3
{[%clk 0:02:55]} 8... O-O {[%clk 0:02:57.2]} 9. O-O {[%clk 0:02:49.3]} 9... Nbd7
{[%clk 0:02:57.4]} 10. c4 {[%clk 0:02:48.2]} 10... c6 {[%clk 0:02:49.4]} 11. Nd4
{[%clk 0:02:44.5]} 11... Qc7 {[%clk 0:02:45.8]} 12. Qc2 {[%clk 0:02:35.3]} 12...
Qd6 {[%clk 0:02:36.4]} 13. cxd5 {[%clk 0:02:33.9]} 13... cxd5 {[%clk 0:02:36.8]}
14. Nab5 {[%clk 0:02:32.1]} 14... Qc5 {[%clk 0:02:35.9]} 15. Qxc5 {[%clk
0:02:25.5]} 15... Nxc5 {[%clk 0:02:36.1]} 16. Rfc1 {[%clk 0:02:25.5]} 16... Nce4
{[%clk 0:02:32.5]} 17. d3 {[%clk 0:02:24.6]} 17... e5 {[%clk 0:02:12]} 18. dxe4
{[%clk 0:02:16.4]} 18... exd4 {[%clk 0:02:12.1]} 19. exd5 {[%clk 0:02:15]} 19...
Bg4 {[%clk 0:02:08.3]} 20. Nxd4 {[%clk 0:02:13.7]} 20... Rad8 {[%clk 0:02:05.9]}
21. e4 {[%clk 0:02:12.9]} 21... Rfe8 {[%clk 0:02:03.7]} 22. f3 {[%clk
0:02:10.4]} 22... Bd7 {[%clk 0:02:03.6]} 23. Bf1 {[%clk 0:02:01.2]} 23... g5
{[%clk 0:01:59.6]} 24. g4 {[%clk 0:01:56]} 24... h5 {[%clk 0:01:59.1]} 25. h3
{[%clk 0:01:55.9]} 25... hxg4 {[%clk 0:01:57.7]} 26. hxg4 {[%clk 0:01:56.8]}
26... Bxg4 {[%clk 0:01:51]} 27. fxg4 {[%clk 0:01:51.1]} 27... Rxe4 {[%clk
0:01:51.1]} 28. Nf5 {[%clk 0:01:43.9]} 28... Rxg4+ {[%clk 0:01:35.2]} 29. Bg2
{[%clk 0:01:43.6]} 29... Rf4 {[%clk 0:01:25.8]} 30. Rf1 {[%clk 0:01:36.7]} 30...
Kh7 {[%clk 0:01:10]} 31. Rxf4 {[%clk 0:01:36.2]} 31... gxf4 {[%clk 0:01:10.5]}
32. Rd1 {[%clk 0:01:25.4]} 32... Kg6 {[%clk 0:01:08.9]} 33. Ne7+ {[%clk
0:01:25.7]} 33... Kg5 {[%clk 0:01:09]} 34. Nc6 {[%clk 0:01:26]} 34... Rd6 {[%clk
0:01:08.5]} 35. a5 {[%clk 0:01:17.2]} 35... a6 {[%clk 0:01:05.1]} 36. Bf3 {[%clk
0:01:14.5]} 36... Nd7 {[%clk 0:00:55.4]} 37. Kf2 {[%clk 0:01:04.8]} 37... Nc5
{[%clk 0:00:53.7]} 38. Rb1 {[%clk 0:00:56.4]} 38... f5 {[%clk 0:00:52.3]} 39.
Rb6 {[%clk 0:00:54.1]} 39... Ne4+ {[%clk 0:00:50.4]} 40. Kg2 {[%clk 0:00:47.6]}
40... Rxd5 {[%clk 0:00:49.5]} 41. Rxa6 {[%clk 0:00:32.7]} 41... Rd2+ {[%clk
0:00:47.7]} 42. Kg1 {[%clk 0:00:04.9]} 42... Kh4 {[%clk 0:00:47.9]} 43. Ne5
{[%clk 0:00:01.6]} 43... Ng5 {[%clk 0:00:47.3]} 44. Rh6+ {[%clk 0:00:01.4]}
44... Kg3 {[%clk 0:00:47.8]} 0-1

[Event "Late-Titled-Tuesday-Blitz-March-19-2024"]
[Site "Chess.com"]
[Date "2024.03.19"]
[Round "9"]
[White "mirochka"]
[Black "Supelyel"]
[Result "1/2-1/2"]
[WhiteElo "2278"]
[BlackElo "2380"]
[TimeControl "180+1"]
[EndTime "15:43:12 PDT"]
[Termination "Game drawn by repetition"]

1. e4 {[%clk 0:03:00.9]} 1... d6 {[%clk 0:02:57.8]} 2. d4 {[%clk 0:03:00.1]}
2... Nf6 {[%clk 0:02:57.5]} 3. Nc3 {[%clk 0:03:00.4]} 3... e5 {[%clk 0:02:57.5]}
4. Nf3 {[%clk 0:02:42.6]} 4... Nbd7 {[%clk 0:02:53]} 5. Bc4 {[%clk 0:02:40.7]}
5... Be7 {[%clk 0:02:52.7]} 6. O-O {[%clk 0:02:38.9]} 6... O-O {[%clk
0:02:52.4]} 7. h3 {[%clk 0:02:38.9]} 7... c6 {[%clk 0:02:52.2]} 8. a4 {[%clk
0:02:36.9]} 8... h6 {[%clk 0:02:52.1]} 9. Be3 {[%clk 0:02:36.3]} 9... Qc7 {[%clk
0:02:29.6]} 10. a5 {[%clk 0:02:31.2]} 10... Rb8 {[%clk 0:02:09.8]} 11. Qd2
{[%clk 0:02:30.3]} 11... b5 {[%clk 0:02:09.1]} 12. axb6 {[%clk 0:02:29.9]} 12...
axb6 {[%clk 0:02:08.7]} 13. Bxh6 {[%clk 0:02:14.8]} 13... gxh6 {[%clk
0:02:03.6]} 14. Qxh6 {[%clk 0:02:15.7]} 14... Nh7 {[%clk 0:02:01.8]} 15. Qg6+
{[%clk 0:02:00.5]} 15... Kh8 {[%clk 0:02:01.2]} 16. Bxf7 {[%clk 0:02:00.3]}
16... exd4 {[%clk 0:01:47.9]} 17. Nxd4 {[%clk 0:01:59.4]} 17... Ne5 {[%clk
0:01:47.4]} 18. Qh5 {[%clk 0:01:32.9]} 18... Nxf7 {[%clk 0:01:37.4]} 19. f4
{[%clk 0:01:24.9]} 19... Bf6 {[%clk 0:01:37.4]} 20. e5 {[%clk 0:01:15]} 20...
Bg7 {[%clk 0:01:21.2]} 21. Ne4 {[%clk 0:01:05.4]} 21... dxe5 {[%clk 0:01:11.9]}
22. fxe5 {[%clk 0:00:55.2]} 22... Bxe5 {[%clk 0:01:11.4]} 23. Nxc6 {[%clk
0:00:33.8]} 23... Qxc6 {[%clk 0:01:00.5]} 24. Rxf7 {[%clk 0:00:32.7]} 24... Rxf7
{[%clk 0:00:34.7]} 25. Qxe5+ {[%clk 0:00:32]} 25... Kg8 {[%clk 0:00:30.5]} 26.
Qxb8 {[%clk 0:00:29.3]} 26... Qxe4 {[%clk 0:00:30.3]} 27. Qxc8+ {[%clk
0:00:28.8]} 27... Rf8 {[%clk 0:00:30.6]} 28. Qc7 {[%clk 0:00:22.5]} 28... Qe3+
{[%clk 0:00:20.5]} 29. Kh1 {[%clk 0:00:21.3]} 29... Rf7 {[%clk 0:00:21.2]} 30.
Qd8+ {[%clk 0:00:12.9]} 30... Kg7 {[%clk 0:00:21.4]} 31. Rd1 {[%clk 0:00:11.3]}
31... Nf6 {[%clk 0:00:20.9]} 32. Qd6 {[%clk 0:00:09.8]} 32... Ne4 {[%clk
0:00:18.4]} 33. Qe5+ {[%clk 0:00:08.9]} 33... Kh7 {[%clk 0:00:15.7]} 34. Qh5+
{[%clk 0:00:08.5]} 34... Kg7 {[%clk 0:00:15.9]} 35. Qe5+ {[%clk 0:00:08.4]}
35... Kh7 {[%clk 0:00:14]} 36. Qh5+ {[%clk 0:00:08.2]} 36... Kg7 {[%clk
0:00:14.3]} 37. Qe5+ {[%clk 0:00:07.9]} 1/2-1/2

[Event "Late-Titled-Tuesday-Blitz-March-19-2024"]
[Site "Chess.com"]
[Date "2024.03.19"]
[Round "9"]
[White "profedechess93"]
[Black "Kampkatten"]
[Result "0-1"]
[WhiteElo "2654"]
[BlackElo "2840"]
[TimeControl "180+1"]
[EndTime "15:43:13 PDT"]
[Termination "Kampkatten won by resignation"]

1. e4 {[%clk 0:03:00.9]} 1... g6 {[%clk 0:03:00.2]} 2. d4 {[%clk 0:03:00.6]}
2... Nf6 {[%clk 0:03:00.8]} 3. Nc3 {[%clk 0:03:01.3]} 3... d5 {[%clk 0:03:00.8]}
4. e5 {[%clk 0:03:00.8]} 4... Ne4 {[%clk 0:03:01.2]} 5. Bd3 {[%clk 0:03:01]}
5... Nxc3 {[%clk 0:03:00.9]} 6. bxc3 {[%clk 0:03:01.9]} 6... c5 {[%clk
0:03:01.2]} 7. h4 {[%clk 0:03:01.6]} 7... Qa5 {[%clk 0:02:56.9]} 8. Bd2 {[%clk
0:02:59.8]} 8... c4 {[%clk 0:02:55.3]} 9. Be2 {[%clk 0:02:56.7]} 9... h5 {[%clk
0:02:55.3]} 10. Nh3 {[%clk 0:02:49.1]} 10... Nc6 {[%clk 0:02:45.4]} 11. Nf4
{[%clk 0:02:24.7]} 11... Bh6 {[%clk 0:02:33.5]} 12. Nh3 {[%clk 0:01:18.1]} 12...
Bg7 {[%clk 0:02:15.4]} 13. Rb1 {[%clk 0:01:14]} 13... b6 {[%clk 0:02:11.6]} 14.
Nf4 {[%clk 0:01:09.6]} 14... Bh6 {[%clk 0:02:06.4]} 15. Nh3 {[%clk 0:01:02.7]}
15... Bg7 {[%clk 0:02:06.3]} 16. Nf4 {[%clk 0:01:02.2]} 16... Bf5 {[%clk
0:02:06.4]} 17. g4 {[%clk 0:00:51.9]} 17... hxg4 {[%clk 0:01:59.3]} 18. Bxg4
{[%clk 0:00:52.8]} 18... e6 {[%clk 0:01:54.7]} 19. Bxf5 {[%clk 0:00:52.5]} 19...
gxf5 {[%clk 0:01:55.6]} 20. Nh5 {[%clk 0:00:51.3]} 20... Bh6 {[%clk 0:01:44.9]}
21. Nf6+ {[%clk 0:00:50.8]} 21... Ke7 {[%clk 0:01:44.9]} 22. Qc1 {[%clk
0:00:28.1]} 22... f4 {[%clk 0:01:20.8]} 23. Ke2 {[%clk 0:00:25.1]} 23... Bg7
{[%clk 0:01:01.7]} 24. Bxf4 {[%clk 0:00:21]} 24... Bxf6 {[%clk 0:01:01.5]} 25.
exf6+ {[%clk 0:00:21.9]} 25... Kd7 {[%clk 0:01:02.1]} 26. Rh3 {[%clk 0:00:22.4]}
26... Rh5 {[%clk 0:01:00]} 27. Bg3 {[%clk 0:00:15.6]} 27... Rg8 {[%clk
0:00:56.1]} 28. Qf4 {[%clk 0:00:15]} 28... e5 {[%clk 0:00:55.6]} 29. dxe5 {[%clk
0:00:15]} 29... Rxe5+ {[%clk 0:00:53.4]} 30. Kf1 {[%clk 0:00:15.4]} 30... Qxc3
{[%clk 0:00:52.5]} 31. Rd1 {[%clk 0:00:12.7]} 31... Ke6 {[%clk 0:00:44.5]} 32.
Qh6 {[%clk 0:00:05.9]} 32... Qxc2 {[%clk 0:00:41.2]} 33. Ra1 {[%clk 0:00:04]}
33... Qe2+ {[%clk 0:00:38.7]} 34. Kg1 {[%clk 0:00:04.3]} 34... Nd4 {[%clk
0:00:37.4]} 35. Qf4 {[%clk 0:00:01.9]} 35... Qe4 {[%clk 0:00:31.2]} 36. Qxe4
{[%clk 0:00:01.2]} 36... Rxe4 {[%clk 0:00:32.1]} 37. Rd1 {[%clk 0:00:01.4]}
37... c3 {[%clk 0:00:31]} 38. Kf1 {[%clk 0:00:02.3]} 38... c2 {[%clk 0:00:30.6]}
39. Rc1 {[%clk 0:00:02.9]} 39... Rc8 {[%clk 0:00:30.1]} 40. Bh2 {[%clk
0:00:03.6]} 40... Ne2 {[%clk 0:00:30.3]} 0-1